[Event "Late-Titled-Tuesday-Blitz-February-06-2024"]
[Site "Chess.com"]
[Date "2024.02.06"]
[Round "11"]
[White "OneTrickPony_82"]
[Black "Goryachkina"]
[Result "0-1"]
[WhiteElo "2553"]
[BlackElo "2693"]
[TimeControl "180+1"]
[EndTime "16:06:58 PST"]
[Termination "Goryachkina won by checkmate"]

1. e4 {[%clk 0:03:00.9]} 1... c5 {[%clk 0:02:59.5]} 2. Nf3 {[%clk 0:03:01.1]}
2... e6 {[%clk 0:02:59.7]} 3. d4 {[%clk 0:03:00.5]} 3... cxd4 {[%clk 0:03:00]}
4. Nxd4 {[%clk 0:03:01.2]} 4... Nc6 {[%clk 0:03:00.4]} 5. Bf4 {[%clk 0:03:01.4]}
5... Bc5 {[%clk 0:02:54.1]} 6. Nxc6 {[%clk 0:02:51.3]} 6... bxc6 {[%clk
0:02:53.3]} 7. Bd3 {[%clk 0:02:47.1]} 7... Ne7 {[%clk 0:02:51.1]} 8. O-O {[%clk
0:02:40.4]} 8... Ng6 {[%clk 0:02:50.7]} 9. Bd2 {[%clk 0:02:37.4]} 9... O-O
{[%clk 0:02:49]} 10. Nc3 {[%clk 0:02:35.6]} 10... e5 {[%clk 0:02:42.2]} 11. Na4
{[%clk 0:02:32.7]} 11... Be7 {[%clk 0:02:41.8]} 12. c4 {[%clk 0:02:31.3]} 12...
d6 {[%clk 0:02:41.7]} 13. Qf3 {[%clk 0:02:23.1]} 13... Be6 {[%clk 0:02:39.9]}
14. Rad1 {[%clk 0:02:17.8]} 14... Qc8 {[%clk 0:02:37.9]} 15. b3 {[%clk
0:02:10.6]} 15... Bg4 {[%clk 0:02:37.1]} 16. Qg3 {[%clk 0:02:08.1]} 16... Bh4
{[%clk 0:02:31.3]} 17. Qe3 {[%clk 0:02:07.4]} 17... Bxd1 {[%clk 0:02:31.1]} 18.
Rxd1 {[%clk 0:02:07.5]} 18... h6 {[%clk 0:02:29.6]} 19. Bb4 {[%clk 0:02:03.6]}
19... c5 {[%clk 0:02:29.2]} 20. Be1 {[%clk 0:01:57.2]} 20... Bg5 {[%clk
0:02:23]} 21. Qf3 {[%clk 0:01:50.9]} 21... Nf4 {[%clk 0:02:18.8]} 22. Bf1 {[%clk
0:01:49.8]} 22... Qe6 {[%clk 0:02:09.1]} 23. h4 {[%clk 0:01:47.5]} 23... Be7
{[%clk 0:01:12.3]} 24. g3 {[%clk 0:01:45.5]} 24... Ng6 {[%clk 0:01:12.1]} 25.
Kh2 {[%clk 0:01:36.1]} 25... Qf6 {[%clk 0:01:05.3]} 26. Qe2 {[%clk 0:01:29.6]}
26... Bd8 {[%clk 0:01:04.8]} 27. Bh3 {[%clk 0:01:26.4]} 27... Ne7 {[%clk
0:00:56.7]} 28. Qd3 {[%clk 0:01:20.3]} 28... Bc7 {[%clk 0:00:56.2]} 29. Nc3
{[%clk 0:01:21]} 29... Rad8 {[%clk 0:00:54.9]} 30. Nb5 {[%clk 0:01:18.9]} 30...
Bb8 {[%clk 0:00:55]} 31. Nc3 {[%clk 0:01:18.5]} 31... Qg6 {[%clk 0:00:53]} 32.
Qe2 {[%clk 0:01:17.4]} 32... Kh8 {[%clk 0:00:50.2]} 33. g4 {[%clk 0:01:00.2]}
33... Qf6 {[%clk 0:00:42.4]} 34. h5 {[%clk 0:00:58.2]} 34... Bc7 {[%clk
0:00:41.5]} 35. Rd3 {[%clk 0:00:58]} 35... g6 {[%clk 0:00:25]} 36. Nb5 {[%clk
0:00:47.1]} 36... Bb6 {[%clk 0:00:23.7]} 37. Rf3 {[%clk 0:00:44]} 37... Qg7
{[%clk 0:00:23.5]} 38. Rd3 {[%clk 0:00:43.8]} 38... Nc6 {[%clk 0:00:17.5]} 39.
Bc3 {[%clk 0:00:33]} 39... Nd4 {[%clk 0:00:16.4]} 40. Nxd4 {[%clk 0:00:29.2]}
40... cxd4 {[%clk 0:00:16.1]} 41. Bd2 {[%clk 0:00:27.5]} 41... Rde8 {[%clk
0:00:15.8]} 42. Rf3 {[%clk 0:00:26.9]} 42... Bd8 {[%clk 0:00:15.7]} 43. Bb4
{[%clk 0:00:23.6]} 43... Be7 {[%clk 0:00:15.4]} 44. Rg3 {[%clk 0:00:21.1]} 44...
Rd8 {[%clk 0:00:15.4]} 45. Qd2 {[%clk 0:00:19.2]} 45... Bg5 {[%clk 0:00:15.1]}
46. Qe2 {[%clk 0:00:18.6]} 46... Bf4 {[%clk 0:00:15.5]} 47. Kg2 {[%clk
0:00:18.4]} 47... Bxg3 {[%clk 0:00:15.8]} 48. fxg3 {[%clk 0:00:18.2]} 48... Qf6
{[%clk 0:00:15.9]} 49. Bd2 {[%clk 0:00:17.1]} 49... g5 {[%clk 0:00:16.2]} 50.
Qd3 {[%clk 0:00:16.3]} 50... Qe6 {[%clk 0:00:16.5]} 51. Kh2 {[%clk 0:00:15.8]}
51... Kg7 {[%clk 0:00:16.8]} 52. b4 {[%clk 0:00:16.2]} 52... Rc8 {[%clk
0:00:17]} 53. Bf1 {[%clk 0:00:15.9]} 53... Rc7 {[%clk 0:00:17.3]} 54. Kh3 {[%clk
0:00:16.2]} 54... Rfc8 {[%clk 0:00:17.3]} 55. Qf3 {[%clk 0:00:14.7]} 55... Rxc4
{[%clk 0:00:16.8]} 56. Bd3 {[%clk 0:00:13.4]} 56... Rc3 {[%clk 0:00:15.1]} 57.
Bxc3 {[%clk 0:00:13.2]} 57... dxc3 {[%clk 0:00:15.5]} 58. Bc2 {[%clk 0:00:11]}
58... Qxa2 {[%clk 0:00:15.5]} 59. Qe2 {[%clk 0:00:08.8]} 59... Qc4 {[%clk
0:00:14.9]} 60. Qf2 {[%clk 0:00:08.8]} 60... Qxb4 {[%clk 0:00:13.4]} 61. Qf1
{[%clk 0:00:05.8]} 61... Qc4 {[%clk 0:00:13.4]} 62. Bd3 {[%clk 0:00:06.3]} 62...
Qe6 {[%clk 0:00:13.4]} 63. Bc2 {[%clk 0:00:06.1]} 63... a5 {[%clk 0:00:13.2]}
64. Qd1 {[%clk 0:00:05.8]} 64... Rc7 {[%clk 0:00:11.7]} 65. Bb3 {[%clk
0:00:06.1]} 65... Qe7 {[%clk 0:00:11.4]} 66. Bc2 {[%clk 0:00:02.3]} 66... Qf6
{[%clk 0:00:11.6]} 67. Bb3 {[%clk 0:00:02.4]} 67... Qf2 {[%clk 0:00:11.5]} 68.
Qd5 {[%clk 0:00:02.1]} 68... Qf6 {[%clk 0:00:10.4]} 69. Qd3 {[%clk 0:00:01.8]}
69... Rc5 {[%clk 0:00:08.7]} 70. Bc2 {[%clk 0:00:01.7]} 70... Rc7 {[%clk
0:00:07.7]} 71. Qe3 {[%clk 0:00:02.1]} 71... Qe7 {[%clk 0:00:08]} 72. Bb3 {[%clk
0:00:02.6]} 72... Rc5 {[%clk 0:00:08.4]} 73. Qd3 {[%clk 0:00:03.1]} 73... Qc7
{[%clk 0:00:08.7]} 74. Bc2 {[%clk 0:00:03.5]} 74... a4 {[%clk 0:00:09.1]} 75.
Qf3 {[%clk 0:00:03.8]} 75... a3 {[%clk 0:00:08.9]} 76. Bb3 {[%clk 0:00:04.4]}
76... a2 {[%clk 0:00:08]} 77. Bxa2 {[%clk 0:00:04.2]} 77... c2 {[%clk
0:00:08.4]} 78. Bb1 {[%clk 0:00:01.7]} 78... cxb1=Q {[%clk 0:00:08.2]} 79. Qf2
{[%clk 0:00:02.3]} 79... Qh1+ {[%clk 0:00:08.2]} 80. Qh2 {[%clk 0:00:02.1]}
80... Qxh2+ {[%clk 0:00:08.7]} 81. Kxh2 {[%clk 0:00:03]} 81... Rc2+ {[%clk
0:00:09.3]} 82. Kh3 {[%clk 0:00:03.9]} 82... Rc4 {[%clk 0:00:07.8]} 83. Kh2
{[%clk 0:00:04.2]} 83... d5 {[%clk 0:00:08.3]} 84. Kh3 {[%clk 0:00:05.1]} 84...
d4 {[%clk 0:00:07.9]} 85. Kg2 {[%clk 0:00:04.8]} 85... d3 {[%clk 0:00:08.2]} 86.
Kh3 {[%clk 0:00:05.5]} 86... Rxe4 {[%clk 0:00:08.5]} 87. Kg2 {[%clk 0:00:06.4]}
87... Rf4 {[%clk 0:00:09]} 88. Kh3 {[%clk 0:00:07.3]} 88... d2 {[%clk
0:00:09.4]} 89. Kg2 {[%clk 0:00:07.8]} 89... d1=Q {[%clk 0:00:09.8]} 90. Kh3
{[%clk 0:00:08.7]} 90... Qh1# {[%clk 0:00:09.9]} 0-1

[Event "Late-Titled-Tuesday-Blitz-February-06-2024"]
[Site "Chess.com"]
[Date "2024.02.06"]
[Round "11"]
[White "sotochess"]
[Black "Igor_Lysyj"]
[Result "0-1"]
[WhiteElo "2576"]
[BlackElo "2863"]
[TimeControl "180+1"]
[EndTime "16:07:12 PST"]
[Termination "Igor_Lysyj won by resignation"]

1. e4 {[%clk 0:03:00]} 1... e5 {[%clk 0:02:59.5]} 2. Nf3 {[%clk 0:02:59.7]} 2...
Nc6 {[%clk 0:02:59.9]} 3. Bc4 {[%clk 0:02:57.9]} 3... Bc5 {[%clk 0:02:59.4]} 4.
O-O {[%clk 0:02:55.1]} 4... Nf6 {[%clk 0:02:58.7]} 5. d3 {[%clk 0:02:39]} 5...
d6 {[%clk 0:02:58.7]} 6. Be3 {[%clk 0:02:10.8]} 6... Bxe3 {[%clk 0:02:56.8]} 7.
fxe3 {[%clk 0:02:08.3]} 7... O-O {[%clk 0:02:57]} 8. Qe1 {[%clk 0:02:04.8]} 8...
Ne7 {[%clk 0:02:53]} 9. Nh4 {[%clk 0:02:02.4]} 9... Be6 {[%clk 0:02:52.6]} 10.
Bb3 {[%clk 0:02:01.9]} 10... Qd7 {[%clk 0:02:52.1]} 11. Nc3 {[%clk 0:02:01.5]}
11... a5 {[%clk 0:02:47.5]} 12. Qg3 {[%clk 0:01:56.2]} 12... Kh8 {[%clk
0:02:46.8]} 13. d4 {[%clk 0:01:44.9]} 13... Bxb3 {[%clk 0:02:17.7]} 14. axb3
{[%clk 0:01:44.5]} 14... Qg4 {[%clk 0:02:17.7]} 15. Qxg4 {[%clk 0:01:37.3]}
15... Nxg4 {[%clk 0:02:16.8]} 16. Rae1 {[%clk 0:01:37.4]} 16... c6 {[%clk
0:02:06.8]} 17. h3 {[%clk 0:01:28.5]} 17... Nf6 {[%clk 0:02:05.7]} 18. g4 {[%clk
0:01:28.8]} 18... b5 {[%clk 0:01:38.2]} 19. g5 {[%clk 0:01:26.3]} 19... Nd7
{[%clk 0:01:27.8]} 20. Rd1 {[%clk 0:01:11.7]} 20... Nb6 {[%clk 0:00:59.2]} 21.
Nf3 {[%clk 0:01:10]} 21... exd4 {[%clk 0:00:47.8]} 22. exd4 {[%clk 0:01:09.7]}
22... f6 {[%clk 0:00:43.3]} 23. h4 {[%clk 0:01:08.1]} 23... d5 {[%clk
0:00:34.8]} 24. e5 {[%clk 0:00:57.4]} 24... Nf5 {[%clk 0:00:27.6]} 25. Rfe1
{[%clk 0:00:53.7]} 25... fxg5 {[%clk 0:00:27]} 26. hxg5 {[%clk 0:00:50.8]} 26...
b4 {[%clk 0:00:26.3]} 27. Nb1 {[%clk 0:00:46.7]} 27... a4 {[%clk 0:00:25.8]} 28.
bxa4 {[%clk 0:00:42.8]} 28... Nxa4 {[%clk 0:00:25.5]} 29. b3 {[%clk 0:00:42.2]}
29... Nb6 {[%clk 0:00:25.3]} 30. c3 {[%clk 0:00:36.5]} 30... bxc3 {[%clk
0:00:23.5]} 31. Nxc3 {[%clk 0:00:36]} 31... Kg8 {[%clk 0:00:23.2]} 32. Rd2
{[%clk 0:00:29.5]} 32... Nc8 {[%clk 0:00:22.7]} 33. Na4 {[%clk 0:00:27.7]} 33...
Nce7 {[%clk 0:00:22.1]} 34. Kg2 {[%clk 0:00:25.6]} 34... Ng6 {[%clk 0:00:19.4]}
35. Kh2 {[%clk 0:00:20.3]} 35... Nf4 {[%clk 0:00:18.6]} 36. Nc5 {[%clk
0:00:19.3]} 36... Rae8 {[%clk 0:00:18.2]} 37. Ra1 {[%clk 0:00:17.3]} 37... Ne6
{[%clk 0:00:18]} 38. Nxe6 {[%clk 0:00:16.8]} 38... Rxe6 {[%clk 0:00:18.2]} 39.
Ra7 {[%clk 0:00:17.2]} 39... Ne7 {[%clk 0:00:17.2]} 40. Kg3 {[%clk 0:00:16.8]}
40... h6 {[%clk 0:00:17.7]} 41. Kg4 {[%clk 0:00:16.2]} 41... Rg6 {[%clk
0:00:16.6]} 42. Rxe7 {[%clk 0:00:15.2]} 42... Rb8 {[%clk 0:00:12.8]} 43. Rd3
{[%clk 0:00:13.9]} 43... Kh7 {[%clk 0:00:12.1]} 44. Rc3 {[%clk 0:00:12.6]} 44...
Rf8 {[%clk 0:00:11.4]} 45. Re3 {[%clk 0:00:12.4]} 45... Rb8 {[%clk 0:00:11.2]}
46. Rd7 {[%clk 0:00:12.2]} 46... Re8 {[%clk 0:00:10.8]} 47. Rc7 {[%clk
0:00:11.4]} 47... Rge6 {[%clk 0:00:09.5]} 48. Rd7 {[%clk 0:00:11.3]} 48... Rf8
{[%clk 0:00:09.5]} 49. Nh4 {[%clk 0:00:11.8]} 49... hxg5 {[%clk 0:00:09.2]} 50.
Kxg5 {[%clk 0:00:12.7]} 50... Rf1 {[%clk 0:00:09.3]} 51. Rg3 {[%clk 0:00:12.9]}
51... Rh6 {[%clk 0:00:08.5]} 52. Kg4 {[%clk 0:00:12.3]} 52... Rh1 {[%clk
0:00:08]} 53. Rxg7+ {[%clk 0:00:12]} 53... Kxg7 {[%clk 0:00:07.9]} 54. Nf5+
{[%clk 0:00:12.9]} 54... Kf7 {[%clk 0:00:06.9]} 55. Nxh6+ {[%clk 0:00:13.8]}
55... Rxh6 {[%clk 0:00:07.2]} 56. Rf3+ {[%clk 0:00:14.7]} 56... Ke7 {[%clk
0:00:07.1]} 57. Kg5 {[%clk 0:00:15.1]} 57... Rh2 {[%clk 0:00:06.7]} 58. Rc3
{[%clk 0:00:14.9]} 58... Kd7 {[%clk 0:00:06.1]} 59. Kf6 {[%clk 0:00:15]} 59...
Rf2+ {[%clk 0:00:06]} 60. Kg7 {[%clk 0:00:14.6]} 60... Rf4 {[%clk 0:00:05.8]}
61. e6+ {[%clk 0:00:14.6]} 61... Kd6 {[%clk 0:00:05]} 62. e7 {[%clk 0:00:14.8]}
62... Kxe7 {[%clk 0:00:05.2]} 63. Rxc6 {[%clk 0:00:14.6]} 63... Rxd4 {[%clk
0:00:05.5]} 64. Rc1 {[%clk 0:00:13.4]} 64... Rg4+ {[%clk 0:00:05.5]} 65. Kh6
{[%clk 0:00:13.2]} 65... Kd6 {[%clk 0:00:05.1]} 66. Kh5 {[%clk 0:00:13.5]} 66...
Rg3 {[%clk 0:00:05.5]} 67. b4 {[%clk 0:00:13]} 67... Rb3 {[%clk 0:00:05]} 68.
Kg5 {[%clk 0:00:12.3]} 68... Rxb4 {[%clk 0:00:05.1]} 69. Kf5 {[%clk 0:00:13]}
69... Re4 {[%clk 0:00:05.3]} 70. Rc8 {[%clk 0:00:11.4]} 70... Re1 {[%clk
0:00:04.5]} 71. Kf4 {[%clk 0:00:11.2]} 71... d4 {[%clk 0:00:04.2]} 72. Kf3
{[%clk 0:00:11.4]} 72... Kd5 {[%clk 0:00:04.4]} 73. Kf2 {[%clk 0:00:11.5]} 73...
Re7 {[%clk 0:00:04.3]} 74. Rc1 {[%clk 0:00:09.5]} 74... d3 {[%clk 0:00:04.7]}
75. Rc8 {[%clk 0:00:09.7]} 75... Kd4 {[%clk 0:00:04.9]} 76. Kf1 {[%clk
0:00:08.8]} 76... d2 {[%clk 0:00:04.9]} 77. Rd8+ {[%clk 0:00:08.3]} 77... Kc3
{[%clk 0:00:05.3]} 78. Rc8+ {[%clk 0:00:08.8]} 78... Kd3 {[%clk 0:00:05.6]} 79.
Rd8+ {[%clk 0:00:09.2]} 79... Kc2 {[%clk 0:00:06]} 80. Rc8+ {[%clk 0:00:09.7]}
80... Kd1 {[%clk 0:00:06.4]} 81. Rd8 {[%clk 0:00:10.2]} 81... Rf7+ {[%clk
0:00:06.5]} 82. Kg2 {[%clk 0:00:11.1]} 82... Rc7 {[%clk 0:00:06.9]} 83. Kf2
{[%clk 0:00:10.7]} 83... Kc1 {[%clk 0:00:07.3]} 84. Ke2 {[%clk 0:00:10.4]} 84...
Re7+ {[%clk 0:00:07.6]} 85. Kf3 {[%clk 0:00:10.6]} 85... d1=Q+ {[%clk
0:00:07.8]} 86. Rxd1+ {[%clk 0:00:11.5]} 86... Kxd1 {[%clk 0:00:08.1]} 0-1

[Event "Late-Titled-Tuesday-Blitz-February-06-2024"]
[Site "Chess.com"]
[Date "2024.02.06"]
[Round "11"]
[White "jinbojinbo"]
[Black "LikeWater"]
[Result "1/2-1/2"]
[WhiteElo "2632"]
[BlackElo "2778"]
[TimeControl "180+1"]
[EndTime "16:07:43 PST"]
[Termination "Game drawn by stalemate"]

1. Nf3 {[%clk 0:03:00.9]} 1... g6 {[%clk 0:02:59.2]} 2. d4 {[%clk 0:02:59.8]}
2... Bg7 {[%clk 0:03:00.1]} 3. c4 {[%clk 0:02:59.7]} 3... c5 {[%clk 0:02:59.8]}
4. d5 {[%clk 0:02:59]} 4... Nf6 {[%clk 0:02:59.1]} 5. Nc3 {[%clk 0:02:59]} 5...
O-O {[%clk 0:02:59.3]} 6. e4 {[%clk 0:02:57.9]} 6... d6 {[%clk 0:02:59.7]} 7.
Be2 {[%clk 0:02:54.5]} 7... e6 {[%clk 0:02:58.7]} 8. Be3 {[%clk 0:02:55]} 8...
exd5 {[%clk 0:02:57.4]} 9. cxd5 {[%clk 0:02:55.9]} 9... Bg4 {[%clk 0:02:54.7]}
10. Nd2 {[%clk 0:02:53.8]} 10... Bxe2 {[%clk 0:02:54]} 11. Qxe2 {[%clk
0:02:53.9]} 11... Re8 {[%clk 0:02:54.2]} 12. O-O {[%clk 0:02:53.7]} 12... Nbd7
{[%clk 0:02:52.4]} 13. h3 {[%clk 0:02:39.2]} 13... a6 {[%clk 0:02:52.1]} 14. a4
{[%clk 0:02:38.9]} 14... Rc8 {[%clk 0:02:52.2]} 15. f3 {[%clk 0:02:32]} 15...
Ne5 {[%clk 0:02:46.2]} 16. f4 {[%clk 0:02:30.5]} 16... Ned7 {[%clk 0:02:46.2]}
17. Rae1 {[%clk 0:02:19.9]} 17... Nb6 {[%clk 0:02:17.8]} 18. Kh1 {[%clk
0:02:15.3]} 18... Nfd7 {[%clk 0:02:17.7]} 19. a5 {[%clk 0:02:00.8]} 19... Na8
{[%clk 0:02:17]} 20. Nc4 {[%clk 0:02:00.9]} 20... Nf6 {[%clk 0:02:15.8]} 21. Qd3
{[%clk 0:01:49.2]} 21... b5 {[%clk 0:02:15.3]} 22. axb6 {[%clk 0:01:48.7]} 22...
Nxb6 {[%clk 0:02:15.5]} 23. Na5 {[%clk 0:01:42.1]} 23... Nbxd5 {[%clk
0:02:15.3]} 24. Nxd5 {[%clk 0:01:29.5]} 24... Nxd5 {[%clk 0:02:11.1]} 25. Qxd5
{[%clk 0:01:29.2]} 25... Qxa5 {[%clk 0:02:11.3]} 26. e5 {[%clk 0:01:20]} 26...
dxe5 {[%clk 0:01:52.6]} 27. fxe5 {[%clk 0:01:20.9]} 27... Qc7 {[%clk 0:01:48.4]}
28. Bf4 {[%clk 0:01:21.1]} 28... Re6 {[%clk 0:01:47.9]} 29. Qc4 {[%clk
0:01:18.9]} 29... Rce8 {[%clk 0:01:43.6]} 30. b4 {[%clk 0:01:13.6]} 30... Bxe5
{[%clk 0:01:41.9]} 31. Bxe5 {[%clk 0:01:13.4]} 31... Rxe5 {[%clk 0:01:42.8]} 32.
Rxe5 {[%clk 0:01:13.8]} 32... Rxe5 {[%clk 0:01:43.1]} 33. bxc5 {[%clk 0:01:14]}
33... Rxc5 {[%clk 0:01:43]} 34. Qxa6 {[%clk 0:01:14.1]} 34... Rc1 {[%clk
0:01:35.7]} 35. Rxc1 {[%clk 0:01:09.4]} 35... Qxc1+ {[%clk 0:01:36.6]} 36. Kh2
{[%clk 0:01:09.9]} 36... Kg7 {[%clk 0:01:35.6]} 37. Qd3 {[%clk 0:01:09.1]} 37...
Qf4+ {[%clk 0:01:34.5]} 38. Kh1 {[%clk 0:01:08.7]} 38... h5 {[%clk 0:01:35]} 39.
Qd5 {[%clk 0:01:06]} 39... h4 {[%clk 0:01:34.5]} 40. Kg1 {[%clk 0:01:03.8]}
40... Qf6 {[%clk 0:01:32.6]} 41. Kh1 {[%clk 0:01:03]} 41... Qf4 {[%clk
0:01:32.6]} 42. Kg1 {[%clk 0:01:03.1]} 42... Kh6 {[%clk 0:01:29.7]} 43. Kh1
{[%clk 0:00:57.5]} 43... Qf2 {[%clk 0:01:22.5]} 44. Qe4 {[%clk 0:00:48]} 44...
g5 {[%clk 0:01:16.3]} 45. Qc6+ {[%clk 0:00:44.6]} 45... f6 {[%clk 0:01:16]} 46.
Qe8 {[%clk 0:00:33]} 46... Qf1+ {[%clk 0:01:12.9]} 47. Kh2 {[%clk 0:00:33.2]}
47... Qf4+ {[%clk 0:01:13.8]} 48. Kh1 {[%clk 0:00:33.6]} 48... Qc1+ {[%clk
0:01:11.6]} 49. Kh2 {[%clk 0:00:33.7]} 49... Qc7+ {[%clk 0:01:12.5]} 50. Kh1
{[%clk 0:00:33.9]} 50... Qg7 {[%clk 0:01:09.5]} 51. Qe6 {[%clk 0:00:32.2]} 51...
Qf8 {[%clk 0:01:07.3]} 52. Qf5 {[%clk 0:00:26.8]} 52... Kg7 {[%clk 0:01:05.4]}
53. Qd7+ {[%clk 0:00:26.4]} 53... Qf7 {[%clk 0:01:05.4]} 54. Qc8 {[%clk
0:00:26.7]} 54... Qe7 {[%clk 0:01:03.4]} 55. Kh2 {[%clk 0:00:23.8]} 55... Qe5+
{[%clk 0:01:02.9]} 56. Kh1 {[%clk 0:00:24]} 56... Qe7 {[%clk 0:01:03.8]} 57. Kh2
{[%clk 0:00:24.3]} 57... Qa7 {[%clk 0:01:04.4]} 58. Kh1 {[%clk 0:00:24.1]} 58...
Qf7 {[%clk 0:01:04.2]} 59. Kh2 {[%clk 0:00:24.1]} 59... f5 {[%clk 0:01:04.7]}
60. Kh1 {[%clk 0:00:20.9]} 60... Kg6 {[%clk 0:01:04.5]} 61. Qc6+ {[%clk
0:00:20.6]} 61... Qf6 {[%clk 0:01:04.3]} 62. Qe8+ {[%clk 0:00:20.7]} 62... Qf7
{[%clk 0:01:04.5]} 63. Qc6+ {[%clk 0:00:20.9]} 63... Kg7 {[%clk 0:01:04.9]} 64.
Qd6 {[%clk 0:00:20.8]} 64... Qf6 {[%clk 0:00:59.9]} 65. Qd7+ {[%clk 0:00:21.1]}
65... Kh6 {[%clk 0:00:59]} 66. Qe8 {[%clk 0:00:20.7]} 66... g4 {[%clk
0:00:57.3]} 67. hxg4 {[%clk 0:00:20.2]} 67... fxg4 {[%clk 0:00:58.2]} 68. Qe3+
{[%clk 0:00:19.5]} 68... Kh5 {[%clk 0:00:58.6]} 69. Qc5+ {[%clk 0:00:19.5]}
69... Kg6 {[%clk 0:00:58.1]} 70. Qc2+ {[%clk 0:00:19.6]} 70... Kg7 {[%clk
0:00:58.4]} 71. Qc7+ {[%clk 0:00:19.7]} 71... Kh6 {[%clk 0:00:56.1]} 72. Qc1+
{[%clk 0:00:19.1]} 72... Kg6 {[%clk 0:00:50.5]} 73. Qc2+ {[%clk 0:00:19.2]}
73... Qf5 {[%clk 0:00:50.3]} 74. Qc6+ {[%clk 0:00:19.2]} 74... Kg5 {[%clk
0:00:50.6]} 75. Qc1+ {[%clk 0:00:18.8]} 75... Kh5 {[%clk 0:00:50.1]} 76. Qa1
{[%clk 0:00:15.5]} 76... g3 {[%clk 0:00:33.2]} 77. Qh8+ {[%clk 0:00:14.6]} 77...
Kg4 {[%clk 0:00:33.7]} 78. Qg7+ {[%clk 0:00:14.6]} 78... Kf4 {[%clk 0:00:29.3]}
79. Qd4+ {[%clk 0:00:14]} 79... Qe4 {[%clk 0:00:29.4]} 80. Qxe4+ {[%clk
0:00:06.6]} 80... Kxe4 {[%clk 0:00:29.7]} 81. Kg1 {[%clk 0:00:07.1]} 81... Ke3
{[%clk 0:00:29.5]} 82. Kh1 {[%clk 0:00:08]} 82... Ke2 {[%clk 0:00:29.5]} 83. Kg1
{[%clk 0:00:08.3]} 83... Ke1 {[%clk 0:00:26.3]} 84. Kh1 {[%clk 0:00:08.7]} 84...
Kd2 {[%clk 0:00:18.6]} 85. Kg1 {[%clk 0:00:08.9]} 85... Ke3 {[%clk 0:00:14.4]}
86. Kh1 {[%clk 0:00:09.3]} 86... Ke4 {[%clk 0:00:08.4]} 87. Kg1 {[%clk 0:00:09]}
87... Kf4 {[%clk 0:00:06.9]} 88. Kh1 {[%clk 0:00:09]} 88... h3 {[%clk 0:00:07]}
89. Kg1 {[%clk 0:00:09.1]} 89... hxg2 {[%clk 0:00:04.6]} 90. Kxg2 {[%clk
0:00:09.3]} 90... Kg4 {[%clk 0:00:05]} 91. Kg1 {[%clk 0:00:09.8]} 91... Kh4
{[%clk 0:00:05.5]} 92. Kg2 {[%clk 0:00:10]} 92... Kg4 {[%clk 0:00:05.9]} 93. Kg1
{[%clk 0:00:10.5]} 93... Kf3 {[%clk 0:00:06.8]} 94. Kf1 {[%clk 0:00:10.6]} 94...
g2+ {[%clk 0:00:07.7]} 95. Kg1 {[%clk 0:00:10.6]} 95... Kg3 {[%clk 0:00:08]}
1/2-1/2